[Event "Norwegian Championship 2022"]
[Site "Kongsvinger, Norway"]
[Date "2022.07.12"]
[Round "5"]
[White "Hauge, Lars Oskar"]
[Black "Abdrlauf, Elham"]
[Result "1/2-1/2"]
[Board "3"]
[TimeControl "40/5400+30:1800+30"]
[WhiteTitle "GM"]
[BlackTitle "FM"]
[WhiteFideId "1509276"]
[BlackFideId "1533533"]
[WhiteElo "2526"]
[BlackElo "2466"]

1. e4 {[%clk 01:30:57]} {[%emt 00:00:02]} c5 {[%clk 01:29:23]} {[%emt
00:01:38]} 2. Nf3 {[%clk 01:31:22]} {[%emt 00:00:06]} Nc6 {[%clk 01:29:47]}
{[%emt 00:00:05]} 3. Bc4 {[%clk 01:29:22]} {[%emt 00:02:29]} d6 {[%clk
01:22:05]} {[%emt 00:08:13]} 4. O-O {[%clk 01:29:19]} {[%emt 00:00:32]} Nf6
{[%clk 01:21:14]} {[%emt 00:01:21]} 5. d3 {[%clk 01:27:50]} {[%emt 00:01:59]}
g6 {[%clk 01:16:08]} {[%emt 00:05:36]} 6. c3 {[%clk 01:24:25]} {[%emt
00:03:55]} Bg7 {[%clk 01:14:37]} {[%emt 00:02:01]} 7. Bb3 {[%clk 01:24:16]}
{[%emt 00:00:39]} O-O {[%clk 01:13:37]} {[%emt 00:01:30]} 8. Re1 {[%clk
01:24:31]} {[%emt 00:00:16]} b5 {[%clk 01:04:01]} {[%emt 00:10:06]} 9. Nbd2
{[%clk 01:10:07]} {[%emt 00:14:54]} Rb8 {[%clk 01:00:58]} {[%emt 00:03:33]} 10.
a3 {[%clk 01:02:24]} {[%emt 00:08:13]} Ng4 {[%clk 00:47:20]} {[%emt 00:14:08]}
11. Bc2 {[%clk 00:55:10]} {[%emt 00:07:44]} f5 {[%clk 00:37:34]} {[%emt
00:10:17]} 12. h3 {[%clk 00:53:16]} {[%emt 00:02:24]} fxe4 {[%clk 00:36:00]}
{[%emt 00:02:04]} 13. Nxe4 {[%clk 00:52:22]} {[%emt 00:01:24]} Nge5 {[%clk
00:35:36]} {[%emt 00:00:54]} 14. Nxe5 {[%clk 00:49:34]} {[%emt 00:03:18]} Nxe5
{[%clk 00:36:02]} {[%emt 00:00:04]} 15. d4 {[%clk 00:47:54]} {[%emt 00:02:09]}
cxd4 {[%clk 00:36:10]} {[%emt 00:00:22]} 16. cxd4 {[%clk 00:47:54]} {[%emt
00:00:30]} Nc4 {[%clk 00:31:46]} {[%emt 00:04:54]} 17. Ng5 {[%clk 00:43:02]}
{[%emt 00:05:22]} Bf5 {[%clk 00:30:52]} {[%emt 00:01:24]} 18. Bxf5 {[%clk
00:39:13]} {[%emt 00:04:19]} Rxf5 {[%clk 00:31:20]} {[%emt 00:00:01]} 19. Ne6
{[%clk 00:36:57]} {[%emt 00:02:46]} Qd7 {[%clk 00:31:46]} {[%emt 00:00:04]} 20.
Qe2 {[%clk 00:34:54]} {[%emt 00:02:33]} Be5 {[%clk 00:29:40]} {[%emt 00:02:36]}
21. b3 {[%clk 00:31:19]} {[%emt 00:04:06]} Nb6 {[%clk 00:27:24]} {[%emt
00:02:47]} 22. Bb2 {[%clk 00:30:41]} {[%emt 00:01:08]} Qxe6 {[%clk 00:27:14]}
{[%emt 00:00:39]} 23. dxe5 {[%clk 00:31:00]} {[%emt 00:00:11]} d5 {[%clk
00:26:20]} {[%emt 00:01:24]} 24. Qxb5 {[%clk 00:28:16]} {[%emt 00:03:14]} Nd7
{[%clk 00:23:37]} {[%emt 00:03:13]} 25. Qd3 {[%clk 00:22:37]} {[%emt 00:06:08]}
Nc5 {[%clk 00:23:33]} {[%emt 00:00:34]} 26. Qc2 {[%clk 00:19:30]} {[%emt
00:03:37]} Nxb3 {[%clk 00:23:13]} {[%emt 00:00:51]} 27. Rab1 {[%clk 00:16:39]}
{[%emt 00:03:21]} Rff8 {[%clk 00:20:49]} {[%emt 00:02:54]} 28. Rbd1 {[%clk
00:15:01]} {[%emt 00:02:08]} Na5 {[%clk 00:19:06]} {[%emt 00:02:14]} 29. Bd4
{[%clk 00:15:13]} {[%emt 00:00:17]} Nc4 {[%clk 00:19:24]} {[%emt 00:00:13]} 30.
Bxa7 {[%clk 00:14:19]} {[%emt 00:01:25]} Rb5 {[%clk 00:15:37]} {[%emt
00:04:16]} 31. Bd4 {[%clk 00:13:31]} {[%emt 00:01:17]} Ra8 {[%clk 00:14:07]}
{[%emt 00:02:01]} 32. a4 {[%clk 00:13:29]} {[%emt 00:00:32]} Rb4 {[%clk
00:14:09]} {[%emt 00:00:27]} 33. Ra1 {[%clk 00:13:40]} {[%emt 00:00:19]} Na5
{[%clk 00:14:25]} {[%emt 00:00:15]} 34. Be3 {[%clk 00:09:45]} {[%emt 00:04:25]}
Rc4 {[%clk 00:10:06]} {[%emt 00:04:49]} 35. Qb1 {[%clk 00:07:47]} {[%emt
00:02:28]} Nc6 {[%clk 00:09:35]} {[%emt 00:01:01]} 36. Qb3 {[%clk 00:07:17]}
{[%emt 00:00:59]} Qxe5 {[%clk 00:06:38]} {[%emt 00:03:28]} 37. Rad1 {[%clk
00:06:37]} {[%emt 00:01:10]} Rb8 {[%clk 00:04:05]} {[%emt 00:03:03]} 38. Qd3
{[%clk 00:05:43]} {[%emt 00:01:23]} Nb4 {[%clk 00:04:27]} {[%emt 00:00:08]} 39.
Qd2 {[%clk 00:05:15]} {[%emt 00:00:58]} Rc2 {[%clk 00:03:45]} {[%emt 00:01:12]}
40. Qd4 {[%clk 00:35:30]} {[%emt 00:00:15]} Qxd4 {[%clk 00:34:14]} {[%emt
00:00:02]} 41. Bxd4 {[%clk 00:32:15]} {[%emt 00:03:45]} Rc4 {[%clk 00:32:25]}
{[%emt 00:02:19]} 42. Be3 {[%clk 00:22:09]} {[%emt 00:10:35]} e5 {[%clk
00:23:25]} {[%emt 00:09:29]} 43. a5 {[%clk 00:18:42]} {[%emt 00:03:58]} d4
{[%clk 00:23:01]} {[%emt 00:00:52]} 44. Bg5 {[%clk 00:18:10]} {[%emt 00:01:03]}
Nc6 {[%clk 00:19:15]} {[%emt 00:04:17]} 45. a6 {[%clk 00:15:33]} {[%emt
00:03:07]} Ra4 {[%clk 00:18:50]} {[%emt 00:00:55]} 46. Ra1 {[%clk 00:15:46]}
{[%emt 00:00:17]} Rxa1 {[%clk 00:19:06]} {[%emt 00:00:13]} 47. Rxa1 {[%clk
00:16:09]} {[%emt 00:00:07]} Ra8 {[%clk 00:19:35]} {[%emt 00:00:01]} 48. g4
{[%clk 00:10:15]} {[%emt 00:06:24]} Kf7 {[%clk 00:18:15]} {[%emt 00:01:51]} 49.
Kf1 {[%clk 00:10:15]} {[%emt 00:00:30]} Ke6 {[%clk 00:18:26]} {[%emt 00:00:19]}
50. Ke2 {[%clk 00:10:42]} {[%emt 00:00:02]} Nb4 {[%clk 00:16:42]} {[%emt
00:02:14]} 51. Rb1 {[%clk 00:09:00]} {[%emt 00:02:12]} Nxa6 {[%clk 00:16:16]}
{[%emt 00:00:55]} 52. Rb7 {[%clk 00:09:26]} {[%emt 00:00:04]} Nc5 {[%clk
00:15:44]} {[%emt 00:01:03]} 53. Rxh7 {[%clk 00:08:37]} {[%emt 00:01:19]} Ne4
{[%clk 00:12:03]} {[%emt 00:04:10]} 54. h4 {[%clk 00:08:54]} {[%emt 00:00:13]}
Ra2+ {[%clk 00:12:24]} {[%emt 00:00:08]} 55. Kf3 {[%clk 00:09:21]} {[%emt
00:00:04]} Nxf2 {[%clk 00:11:59]} {[%emt 00:00:55]} 56. Re7+ {[%clk 00:09:03]}
{[%emt 00:00:47]} Kd6 {[%clk 00:11:47]} {[%emt 00:00:42]} 57. Rg7 {[%clk
00:09:31]} {[%emt 00:00:03]} e4+ {[%clk 00:11:59]} {[%emt 00:00:17]} 58. Kf4
{[%clk 00:09:19]} {[%emt 00:00:41]} e3 {[%clk 00:10:53]} {[%emt 00:01:37]} 59.
Kf3 {[%clk 00:08:24]} {[%emt 00:01:25]} Nd3 {[%clk 00:08:57]} {[%emt 00:02:27]}
60. Bxe3 {[%clk 00:05:07]} {[%emt 00:03:47]} Ne5+ {[%clk 00:09:25]} {[%emt
00:00:02]} 61. Ke4 {[%clk 00:05:17]} {[%emt 00:00:20]} dxe3 {[%clk 00:09:52]}
{[%emt 00:00:03]} 62. Kxe3 {[%clk 00:05:42]} {[%emt 00:00:05]} Nxg4+ {[%clk
00:10:11]} {[%emt 00:00:10]} 63. Kf4 {[%clk 00:05:29]} {[%emt 00:00:43]} Ne5
{[%clk 00:07:29]} {[%emt 00:03:12]} 64. h5 {[%clk 00:04:29]} {[%emt 00:01:29]}
gxh5 {[%clk 00:07:28]} {[%emt 00:00:32]} 65. Rh7 {[%clk 00:04:49]} {[%emt
00:00:10]} h4 {[%clk 00:07:27]} {[%emt 00:00:31]} 66. Rh6+ {[%clk 00:05:14]}
{[%emt 00:00:05]} Kd5 {[%clk 00:07:56]} 67. Rh5 {[%clk 00:05:37]} {[%emt
00:00:07]} Ra4+ {[%clk 00:08:20]} {[%emt 00:00:07]} 68. Kf5 {[%clk 00:05:56]}
{[%emt 00:00:11]} Nf7 {[%clk 00:07:07]} {[%emt 00:01:43]} 69. Kf6+ {[%clk
00:05:53]} {[%emt 00:00:34]} Ne5 {[%clk 00:04:16]} {[%emt 00:03:21]} 70. Rxe5+
{[%clk 00:06:14]} {[%emt 00:00:09]} Kd4 {[%clk 00:04:44]} {[%emt 00:00:02]} 71.
Rh5 {[%clk 00:06:26]} {[%emt 00:00:17]} Ke3 {[%clk 00:01:27]} {[%emt 00:03:47]}
72. Kg5 {[%clk 00:06:45]} {[%emt 00:00:12]} Ra5+ {[%clk 00:01:06]} {[%emt
00:00:52]} 73. Kxh4 {[%clk 00:07:09]} {[%emt 00:00:05]} Rxh5+ {[%clk 00:01:27]}
{[%emt 00:00:08]} 74. Kxh5 {[%emt 00:00:04]} 1/2-1/2

[Event "Norwegian Championship 2022"]
[Site "Kongsvinger, Norway"]
[Date "2022.07.12"]
[Round "5"]
[White "Elsness, Frode"]
[Black "Østmoe, Geir Sune Tallaksen"]
[Result "1/2-1/2"]
[Board "4"]
[TimeControl "40/5400+30:1800+30"]
[WhiteTitle "IM"]
[BlackTitle "IM"]
[WhiteFideId "1501100"]
[BlackFideId "1502778"]
[WhiteElo "2464"]
[BlackElo "2483"]

1. e4 {[%clk 01:29:03]} {[%emt 00:01:56]} c6 {[%clk 01:30:45]} {[%emt
00:00:16]} 2. d4 {[%clk 01:29:23]} {[%emt 00:00:10]} d5 {[%clk 01:31:11]}
{[%emt 00:00:04]} 3. e5 {[%clk 01:29:49]} {[%emt 00:00:03]} Bf5 {[%clk
01:31:34]} {[%emt 00:00:07]} 4. h4 {[%clk 01:30:11]} {[%emt 00:00:08]} h5
{[%clk 01:31:54]} {[%emt 00:00:10]} 5. Bd3 {[%clk 01:30:37]} {[%emt 00:00:05]}
Bxd3 {[%clk 01:32:19]} {[%emt 00:00:05]} 6. Qxd3 {[%clk 01:31:04]} {[%emt
00:00:02]} Qa5+ {[%clk 01:32:32]} {[%emt 00:00:16]} 7. Nd2 {[%clk 01:31:28]}
{[%emt 00:00:06]} e6 {[%clk 01:32:56]} {[%emt 00:00:06]} 8. Ngf3 {[%clk
01:31:45]} {[%emt 00:00:13]} Nh6 {[%clk 01:32:50]} {[%emt 00:00:37]} 9. O-O
{[%clk 01:31:56]} {[%emt 00:00:18]} Nf5 {[%clk 01:32:50]} {[%emt 00:00:30]} 10.
Nb3 {[%clk 01:31:56]} {[%emt 00:00:30]} Qb5 {[%clk 01:32:34]} {[%emt 00:00:45]}
11. Qd1 {[%clk 01:32:12]} {[%emt 00:00:13]} c5 {[%clk 01:32:29]} {[%emt
00:00:36]} 12. a4 {[%clk 01:30:01]} {[%emt 00:02:42]} Qb6 {[%clk 01:31:37]}
{[%emt 00:01:22]} 13. dxc5 {[%clk 01:29:31]} {[%emt 00:01:00]} Bxc5 {[%clk
01:32:00]} {[%emt 00:00:06]} 14. Nxc5 {[%clk 01:29:48]} {[%emt 00:00:13]} Qxc5
{[%clk 01:32:26]} {[%emt 00:00:04]} 15. c3 {[%clk 01:29:29]} {[%emt 00:00:49]}
Nc6 {[%clk 01:30:01]} {[%emt 00:02:55]} 16. Re1 {[%clk 01:17:31]} {[%emt
00:12:27]} Rc8 {[%clk 01:19:33]} {[%emt 00:10:59]} 17. Bf4 {[%clk 01:14:06]}
{[%emt 00:03:53]} Nce7 {[%clk 01:02:06]} {[%emt 00:18:00]} 18. g3 {[%clk
01:05:54]} {[%emt 00:08:42]} a5 {[%clk 00:57:40]} {[%emt 00:04:56]} 19. Rc1
{[%clk 01:00:02]} {[%emt 00:06:21]} Qb6 {[%clk 00:53:22]} {[%emt 00:04:49]} 20.
b3 {[%clk 00:57:08]} {[%emt 00:03:24]} Rc6 {[%clk 00:52:35]} {[%emt 00:01:17]}
21. Bg5 {[%clk 00:53:09]} {[%emt 00:04:29]} Qc7 {[%clk 00:48:43]} {[%emt
00:04:23]} 22. Bd2 {[%clk 00:34:48]} {[%emt 00:18:51]} Ng6 {[%clk 00:38:22]}
{[%emt 00:10:51]} 23. Kg2 {[%clk 00:32:44]} {[%emt 00:02:33]} Qb6 {[%clk
00:22:45]} {[%emt 00:16:07]} 24. Rb1 {[%clk 00:32:04]} {[%emt 00:01:10]} Qc7
{[%clk 00:20:48]} {[%emt 00:02:27]} 25. Qe2 {[%clk 00:31:58]} {[%emt 00:00:34]}
b6 {[%clk 00:20:30]} {[%emt 00:00:50]} 26. Rbc1 {[%clk 00:30:45]} {[%emt
00:01:43]} Nge7 {[%clk 00:19:31]} {[%emt 00:01:29]} 27. Kg1 {[%clk 00:21:32]}
{[%emt 00:09:43]} O-O {[%clk 00:14:52]} {[%emt 00:05:09]} 28. Nh2 {[%clk
00:16:34]} {[%emt 00:05:27]} Ng6 {[%clk 00:10:40]} {[%emt 00:04:43]} 29. Kg2
{[%clk 00:11:05]} {[%emt 00:05:58]} d4 {[%clk 00:09:36]} {[%emt 00:01:35]} 30.
c4 {[%clk 00:10:32]} {[%emt 00:01:03]} d3 {[%clk 00:07:42]} {[%emt 00:02:25]}
31. Qe4 {[%clk 00:06:49]} {[%emt 00:04:12]} Rd8 {[%clk 00:06:55]} {[%emt
00:01:18]} 32. Nf3 {[%clk 00:07:14]} {[%emt 00:00:05]} Rc5 {[%clk 00:05:01]}
{[%emt 00:02:24]} 33. Rcd1 {[%clk 00:06:10]} {[%emt 00:01:33]} Qc6 {[%clk
00:04:04]} {[%emt 00:01:27]} 34. Bg5 {[%clk 00:03:00]} {[%emt 00:03:39]} Rd7
{[%clk 00:03:55]} {[%emt 00:00:40]} 35. Qxc6 {[%clk 00:03:22]} {[%emt
00:00:08]} Rxc6 {[%clk 00:04:24]} {[%emt 00:00:01]} 36. Rd2 {[%clk 00:02:23]}
{[%emt 00:01:29]} Rc5 {[%clk 00:04:36]} {[%emt 00:00:18]} 37. Red1 {[%clk
00:01:12]} {[%emt 00:01:41]} Nxe5 {[%clk 00:04:05]} {[%emt 00:01:02]} 38. Nxe5
{[%clk 00:01:40]} {[%emt 00:00:01]} Rxe5 {[%clk 00:04:28]} {[%emt 00:00:06]} 39.
Rxd3 {[%clk 00:01:57]} {[%emt 00:00:14]} Rxd3 {[%clk 00:03:29]} {[%emt
00:01:29]} 40. Rxd3 {[%clk 00:32:25]} {[%emt 00:00:01]} f6 {[%clk 00:33:23]}
{[%emt 00:00:35]} 41. Bf4 {[%clk 00:25:30]} {[%emt 00:07:25]} Rc5 {[%clk
00:32:34]} {[%emt 00:01:20]} 42. Rd7 {[%clk 00:23:17]} {[%emt 00:02:43]} Rc6
{[%clk 00:20:11]} {[%emt 00:12:54]} 43. Kf3 {[%clk 00:20:40]} {[%emt 00:03:06]}
Kh7 {[%clk 00:13:34]} {[%emt 00:07:08]} 44. Rc7 {[%clk 00:15:51]} {[%emt
00:05:18]} Kg6 {[%clk 00:11:51]} {[%emt 00:02:14]} 45. Rxc6 {[%emt 00:03:41]}
Nd4+ {[%clk 00:12:18]} {[%emt 00:00:03]} 46. Ke4 {[%clk 00:12:45]} {[%emt
00:00:24]} Nxc6 {[%clk 00:12:44]} {[%emt 00:00:04]} 47. Bc7 {[%clk 00:12:00]}
{[%emt 00:01:14]} f5+ {[%clk 00:12:30]} {[%emt 00:00:45]} 48. Kd3 {[%clk
00:12:00]} {[%emt 00:00:29]} e5 {[%clk 00:12:31]} {[%emt 00:00:31]} 49. Bxb6
{[%clk 00:12:06]} {[%emt 00:00:24]} Kf6 {[%clk 00:12:30]} {[%emt 00:00:30]} 50.
c5 {[%clk 00:07:30]} {[%emt 00:05:07]} Ke6 {[%clk 00:11:19]} {[%emt 00:01:41]}
51. Kc4 {[%clk 00:07:20]} {[%emt 00:00:40]} f4 {[%clk 00:09:42]} {[%emt
00:02:07]} 52. Bc7 {[%clk 00:04:44]} {[%emt 00:03:07]} f3 {[%clk 00:08:12]}
{[%emt 00:02:00]} 53. Bd6 {[%clk 00:04:31]} {[%emt 00:00:42]} Nd4 {[%clk
00:07:18]} {[%emt 00:01:24]} 54. Bc7 {[%clk 00:02:41]} {[%emt 00:02:20]} Nc6
{[%clk 00:07:14]} {[%emt 00:00:34]} 55. Bd6 {[%clk 00:02:47]} {[%emt 00:00:24]}
Nd4 {[%emt 00:00:06]} 56. Bc7 Nc6 {[%clk 00:07:38]} 1/2-1/2

[Event "Norwegian Championship 2022"]
[Site "Kongsvinger, Norway"]
[Date "2022.07.12"]
[Round "5"]
[White "Stanford, Maxim Barth"]
[Black "Tallaksen, Levi André"]
[Result "1-0"]
[Board "5"]
[TimeControl "40/5400+30:1800+30"]
[WhiteTitle "IM"]
[BlackTitle "FM"]
[WhiteFideId "408280"]
[BlackFideId "1505785"]
[WhiteElo "2308"]
[BlackElo "2341"]

1. d4 {[%clk 01:30:50]} {[%emt 00:00:09]} Nf6 {[%clk 01:30:52]} {[%emt
00:00:09]} 2. c4 {[%clk 01:31:14]} {[%emt 00:00:06]} e6 {[%clk 01:31:14]}
{[%emt 00:00:08]} 3. Nc3 {[%clk 01:31:28]} {[%emt 00:00:16]} d5 {[%clk
01:31:33]} {[%emt 00:00:10]} 4. Nf3 {[%clk 01:31:20]} {[%emt 00:00:39]} dxc4
{[%clk 01:31:27]} {[%emt 00:00:36]} 5. e3 {[%clk 01:31:18]} {[%emt 00:00:31]}
c5 {[%clk 01:31:20]} {[%emt 00:00:37]} 6. Bxc4 {[%clk 01:31:25]} {[%emt
00:00:24]} Be7 {[%clk 01:30:44]} {[%emt 00:01:06]} 7. O-O {[%clk 01:31:21]}
{[%emt 00:00:34]} O-O {[%clk 01:31:05]} {[%emt 00:00:09]} 8. Qe2 {[%clk
01:25:01]} {[%emt 00:06:50]} a6 {[%clk 01:30:02]} {[%emt 00:01:33]} 9. Rd1
{[%clk 01:21:13]} {[%emt 00:04:17]} Qc7 {[%clk 01:24:47]} {[%emt 00:05:45]} 10.
a4 {[%clk 01:18:05]} {[%emt 00:03:38]} Nc6 {[%clk 01:24:50]} {[%emt 00:00:26]}
11. h3 {[%clk 01:17:04]} {[%emt 00:01:30]} b6 {[%clk 01:23:27]} {[%emt
00:01:54]} 12. dxc5 {[%clk 01:11:38]} {[%emt 00:05:56]} bxc5 {[%clk 01:18:57]}
{[%emt 00:05:00]} 13. e4 {[%clk 01:08:56]} {[%emt 00:03:12]} Nd7 {[%clk
01:07:22]} {[%emt 00:12:05]} 14. Be3 {[%clk 01:05:39]} {[%emt 00:03:47]} Bf6
{[%clk 01:06:27]} {[%emt 00:01:25]} 15. Rac1 {[%clk 01:04:16]} {[%emt
00:01:54]} Qb6 {[%clk 01:03:38]} {[%emt 00:03:19]} 16. Rd2 {[%clk 00:58:35]}
{[%emt 00:06:10]} Nde5 {[%clk 00:55:53]} {[%emt 00:08:16]} 17. Nxe5 {[%clk
00:57:15]} {[%emt 00:01:50]} Bxe5 {[%clk 00:55:50]} {[%emt 00:00:33]} 18. f4
{[%clk 00:55:46]} {[%emt 00:01:58]} Bd4 {[%clk 00:55:31]} {[%emt 00:00:48]} 19.
e5 {[%clk 00:53:39]} {[%emt 00:02:38]} Ne7 {[%clk 00:39:42]} {[%emt 00:16:19]}
20. Bd3 {[%clk 00:47:43]} {[%emt 00:06:27]} Bb7 {[%clk 00:35:37]} {[%emt
00:04:35]} 21. Kh2 {[%clk 00:44:19]} {[%emt 00:03:54]} Rfd8 {[%clk 00:28:11]}
{[%emt 00:07:56]} 22. Rcd1 {[%clk 00:39:29]} {[%emt 00:05:20]} Rd7 {[%clk
00:19:43]} {[%emt 00:08:58]} 23. Qf2 {[%clk 00:24:54]} {[%emt 00:15:05]} Rad8
{[%clk 00:15:35]} {[%emt 00:04:38]} 24. Bxd4 {[%clk 00:22:54]} {[%emt
00:02:30]} Rxd4 {[%clk 00:12:41]} {[%emt 00:03:25]} 25. Ne2 {[%clk 00:21:59]}
{[%emt 00:01:24]} R4d5 {[%clk 00:12:15]} {[%emt 00:00:56]} 26. Nc3 {[%clk
00:18:56]} {[%emt 00:03:33]} Rd4 {[%clk 00:12:33]} {[%emt 00:00:12]} 27. Ne4
{[%clk 00:13:20]} {[%emt 00:06:06]} Rxd3 {[%clk 00:07:43]} {[%emt 00:05:20]} 28.
Rxd3 {[%clk 00:13:43]} {[%emt 00:00:07]} Rxd3 {[%clk 00:08:08]} {[%emt
00:00:06]} 29. Rxd3 {[%clk 00:14:07]} {[%emt 00:00:05]} Bxe4 {[%clk 00:08:28]}
{[%emt 00:00:10]} 30. Qxc5 {[%clk 00:14:22]} {[%emt 00:00:15]} Qb8 {[%clk
00:08:42]} {[%emt 00:00:15]} 31. Rd4 {[%clk 00:14:17]} {[%emt 00:00:35]} Bxg2
{[%clk 00:04:49]} {[%emt 00:04:23]} 32. Qxe7 {[%clk 00:12:29]} {[%emt
00:02:17]} Bd5 {[%clk 00:05:14]} {[%emt 00:00:06]} 33. b4 {[%clk 00:12:49]}
{[%emt 00:00:10]} h6 {[%clk 00:03:47]} {[%emt 00:01:58]} 34. Qc5 {[%clk
00:10:11]} {[%emt 00:03:07]} g5 {[%clk 00:02:08]} {[%emt 00:02:10]} 35. Rd1
{[%clk 00:09:08]} {[%emt 00:01:33]} f6 {[%clk 00:00:51]} {[%emt 00:01:46]} 36.
Rxd5 {[%clk 00:07:00]} {[%emt 00:02:37]} exd5 {[%clk 00:01:15]} {[%emt
00:00:07]} 37. Qxd5+ {[%clk 00:07:28]} {[%emt 00:00:02]} Kh8 {[%clk 00:00:44]}
{[%emt 00:01:02]} 38. Qd6 {[%clk 00:07:45]} {[%emt 00:00:12]} Qc8 {[%clk
00:01:08]} {[%emt 00:00:06]} 39. Qxf6+ {[%clk 00:07:47]} {[%emt 00:00:29]} Kh7
{[%clk 00:01:34]} {[%emt 00:00:04]} 40. Qe7+ {[%clk 00:36:44]} {[%emt
00:01:32]} Kh8 {[%clk 00:30:39]} {[%emt 00:01:25]} 41. fxg5 {[%clk 00:35:17]}
{[%emt 00:01:57]} Qc2+ {[%clk 00:28:59]} {[%emt 00:02:09]} 42. Kg3 {[%clk
00:35:21]} {[%emt 00:00:25]} hxg5 {[%clk 00:29:10]} {[%emt 00:00:20]} 43. Qxg5
{[%clk 00:24:25]} {[%emt 00:11:26]} Qc3+ {[%clk 00:22:04]} {[%emt 00:07:35]} 44.
Kg4 {[%clk 00:22:58]} {[%emt 00:01:57]} Qxb4+ {[%clk 00:21:48]} {[%emt
00:00:47]} 45. Qf4 {[%clk 00:22:59]} {[%emt 00:00:28]} Qb3 {[%clk 00:21:00]}
{[%emt 00:01:19]} 46. Qh6+ {[%clk 00:16:46]} {[%emt 00:06:43]} Kg8 {[%clk
00:21:24]} {[%emt 00:00:06]} 47. Qxa6 {[%emt 00:01:43]} Qd1+ {[%clk 00:20:06]}
{[%emt 00:00:24]} 48. Kf4 {[%clk 00:17:15]} {[%emt 00:00:12]} Qd2+ {[%clk
00:19:39]} {[%emt 00:00:57]} 49. Ke4 {[%clk 00:17:07]} {[%emt 00:00:37]} Qg2+
{[%clk 00:16:45]} {[%emt 00:03:25]} 50. Kd4 {[%clk 00:17:07]} {[%emt 00:00:30]}
Qxh3 {[%clk 00:16:26]} {[%emt 00:00:50]} 51. Qc4+ {[%clk 00:14:31]} {[%emt
00:03:06]} Kf8 {[%clk 00:16:29]} {[%emt 00:00:26]} 52. a5 {[%clk 00:13:38]}
{[%emt 00:01:24]} Qg4+ {[%clk 00:15:32]} {[%emt 00:01:27]} 53. Kc5 {[%clk
00:13:22]} {[%emt 00:00:47]} Qc8+ {[%clk 00:15:39]} {[%emt 00:00:23]} 54. Kb4
{[%clk 00:13:43]} {[%emt 00:00:09]} Qb7+ {[%clk 00:15:22]} {[%emt 00:00:48]} 55.
Ka3 {[%clk 00:13:49]} {[%emt 00:00:23]} Qf3+ {[%clk 00:15:04]} {[%emt
00:00:48]} 56. Qb3 {[%clk 00:13:54]} {[%emt 00:00:25]} Qe2 {[%clk 00:15:24]}
{[%emt 00:00:10]} 57. Qb8+ {[%clk 00:13:43]} {[%emt 00:00:43]} Ke7 {[%clk
00:15:40]} {[%emt 00:00:13]} 58. Qd6+ {[%clk 00:13:56]} {[%emt 00:00:17]} Ke8
{[%clk 00:15:59]} {[%emt 00:00:09]} 59. a6 {[%clk 00:14:05]} {[%emt 00:00:22]}
Qe3+ {[%clk 00:14:20]} {[%emt 00:02:10]} 60. Ka4 {[%clk 00:14:24]} {[%emt
00:00:11]} Qe4+ {[%clk 00:14:36]} {[%emt 00:00:13]} 61. Ka5 {[%clk 00:14:25]}
{[%emt 00:00:30]} Qe1+ {[%clk 00:14:34]} {[%emt 00:00:31]} 62. Qb4 {[%clk
00:13:28]} {[%emt 00:01:26]} Qe3 {[%clk 00:14:33]} {[%emt 00:00:30]} 63. Qb8+
{[%clk 00:13:33]} {[%emt 00:00:26]} Kd7 {[%clk 00:14:24]} {[%emt 00:00:39]} 64.
Qb7+ {[%clk 00:13:45]} {[%emt 00:00:18]} Ke8 {[%clk 00:14:42]} {[%emt
00:00:12]} 65. Qc8+ {[%clk 00:12:54]} {[%emt 00:01:20]} Ke7 {[%clk 00:15:07]}
{[%emt 00:00:05]} 66. Qc7+ {[%clk 00:13:18]} {[%emt 00:00:06]} Ke8 {[%clk
00:15:26]} {[%emt 00:00:11]} 67. Kb5 {[%clk 00:11:14]} {[%emt 00:02:34]} Qb3+
{[%clk 00:09:32]} {[%emt 00:06:24]} 68. Kc6 {[%clk 00:10:33]} {[%emt 00:01:11]}
Qc4+ {[%clk 00:09:10]} {[%emt 00:00:52]} 69. Kb6 {[%clk 00:10:05]} {[%emt
00:00:59]} Qb3+ {[%clk 00:07:09]} {[%emt 00:02:31]} 70. Ka7 {[%clk 00:10:04]}
{[%emt 00:00:30]} Qa2 {[%clk 00:07:14]} {[%emt 00:00:25]} 71. Qc6+ {[%clk
00:09:51]} {[%emt 00:00:43]} Kd8 {[%clk 00:06:57]} {[%emt 00:00:47]} 72. e6
{[%clk 00:10:01]} {[%emt 00:00:20]} Ke7 {[%clk 00:06:55]} {[%emt 00:00:32]} 73.
Qd7 {[%clk 00:10:14]} {[%emt 00:00:17]} Kf6 {[%clk 00:07:22]} {[%emt 00:00:04]}
74. Qf7+ {[%clk 00:09:24]} {[%emt 00:01:20]} Kg5 {[%clk 00:07:44]} {[%emt
00:00:08]} 75. Qe7+ {[%clk 00:08:30]} {[%emt 00:01:24]} Kg6 {[%clk 00:07:32]}
{[%emt 00:00:42]} 76. Qd6 {[%clk 00:08:37]} {[%emt 00:00:22]} Qf2+ {[%clk
00:07:17]} {[%emt 00:00:46]} 77. Qb6 {[%clk 00:08:47]} {[%emt 00:00:20]} Qa2
{[%clk 00:07:32]} {[%emt 00:00:16]} 78. Qc6 {[%clk 00:06:02]} {[%emt 00:03:15]}
Qf2+ {[%clk 00:06:23]} {[%emt 00:01:38]} 79. Kb7 {[%clk 00:06:25]} {[%emt
00:00:07]} Qb2+ {[%clk 00:06:38]} {[%emt 00:00:15]} 80. Qb6 {[%clk 00:05:49]}
{[%emt 00:01:06]} Qg2+ {[%clk 00:03:40]} {[%emt 00:03:28]} 81. Kc7 {[%clk
00:05:52]} {[%emt 00:00:27]} Qc2+ {[%clk 00:04:02]} {[%emt 00:00:08]} 82. Qc6
{[%clk 00:05:52]} {[%emt 00:00:30]} Qh2+ {[%clk 00:04:07]} {[%emt 00:00:25]} 83.
Kd7 {[%clk 00:06:11]} {[%emt 00:00:11]} Qd2+ {[%clk 00:02:14]} {[%emt
00:02:23]} 84. Qd6 {[%clk 00:06:32]} {[%emt 00:00:09]} Qe3 {[%clk 00:02:39]}
{[%emt 00:00:06]} 85. e7+ {[%clk 00:06:44]} {[%emt 00:00:18]} Kf7 {[%clk
00:03:06]} {[%emt 00:00:04]} 86. Qg6 {[%emt 00:00:14]} 1-0